Department Family,Date Paid,Expense Type,Expense Area,Supplier,Transaction Number,Amount,Vat Inclusive
Crown Prosecution Service ,10/10/23,Property management fees,Estate and FM: Programme,Government Property Agency London,00000001/28074,"8,276.14",Y
Crown Prosecution Service ,10/10/23,Lease liability non current lease payments,Balance Sheet,Government Property Agency London,00000001/28074,"26,640.00",
Crown Prosecution Service ,10/10/23,National non domestic rates,Estate and FM: Programme,Government Property Agency London,00000001/28074,"12,395.94",
Crown Prosecution Service ,10/10/23,Landlord service charge,Estate and FM: Programme,Government Property Agency London,00000001/28074,"19,884.28",
Crown Prosecution Service ,18/10/23,Facilities management,Estate and FM: Programme,Government Property Agency London,00000001/28781,"26,947.31",Y
Crown Prosecution Service ,23/10/23,Facilities management,Estate and FM: Programme,Government Property Agency London,00000001/28782,"683,313.23",Y
Crown Prosecution Service ,06/10/23,Right of use asset clearing Buildings,Balance Sheet,Government Property Agency London,00000001/28943,"28,579.32",
Crown Prosecution Service ,06/10/23,Right of use asset clearing Buildings,Balance Sheet,Government Property Agency London,00000001/28947,"30,064.41",
Crown Prosecution Service ,06/10/23,Right of use asset clearing Buildings,Balance Sheet,Government Property Agency London,00000001/28952,"31,385.30",
Crown Prosecution Service ,06/10/23,Right of use asset clearing Buildings,Balance Sheet,Government Property Agency London,00000001/28962,"32,690.39",
Crown Prosecution Service ,06/10/23,PPE asset purchase clearing Furniture and fittings,Balance Sheet,Government Property Agency London,00000001/28964,"130,738.05",
Crown Prosecution Service ,27/10/23,Property management fees,Estate and FM: Programme,Government Property Agency London,00000001/29310,"3,930.90",Y
Crown Prosecution Service ,27/10/23,Property management fees,Estate and FM: Administration,Government Property Agency London,00000001/29310,"3,930.91",Y
Crown Prosecution Service ,27/10/23,National non domestic rates,Estate and FM: Programme,Government Property Agency London,00000001/29310,"9,226.95",
Crown Prosecution Service ,27/10/23,Landlord service charge,Estate and FM: Administration,Government Property Agency London,00000001/29310,"19,316.80",
Crown Prosecution Service ,27/10/23,Landlord service charge,Estate and FM: Programme,Government Property Agency London,00000001/29310,"19,316.80",
Crown Prosecution Service ,27/10/23,National non domestic rates,Estate and FM: Administration,Government Property Agency London,00000001/29310,"9,226.95",
Crown Prosecution Service ,27/10/23,Lease liability non current lease payments,Balance Sheet,Government Property Agency London,00000001/29310,"83,178.52",
Crown Prosecution Service ,26/10/23,Recoverable VAT control,Balance Sheet,Mendip Media Group Ltd Tiverton,0000000226,"5,202.00",Y
Crown Prosecution Service ,26/10/23,Transcriptions and Translation,Other Corporate Programme Payments,Mendip Media Group Ltd Tiverton,0000000226,"26,010.00",
Crown Prosecution Service ,30/10/23,Recoverable VAT control,Balance Sheet,Mendip Media Group Ltd Tiverton,0000000227,"8,462.60",Y
Crown Prosecution Service ,30/10/23,Transcriptions and Translation,Other Corporate Programme Payments,Mendip Media Group Ltd Tiverton,0000000227,"42,313.00",
Crown Prosecution Service ,26/10/23,Recoverable VAT control,Balance Sheet,Mendip Media Group Ltd Tiverton,0000000228,"4,865.80",Y
Crown Prosecution Service ,26/10/23,Transcriptions and Translation,Other Corporate Programme Payments,Mendip Media Group Ltd Tiverton,0000000228,"24,329.00",
Crown Prosecution Service ,30/10/23,Recoverable VAT control,Balance Sheet,Mendip Media Group Ltd Tiverton,0000000229,"7,694.60",Y
Crown Prosecution Service ,30/10/23,Transcriptions and Translation,Other Corporate Programme Payments,Mendip Media Group Ltd Tiverton,0000000229,"38,473.00",
Crown Prosecution Service ,10/10/23,Ordinary Witness Expenses,Wessex Magistrates Court Unit,Clarity Travel Management,000000133151,107.95,
Crown Prosecution Service ,10/10/23,Ordinary Witness Expenses,South East Crown Court,Clarity Travel Management,000000133151,60.80,
Crown Prosecution Service ,10/10/23,Ordinary Witness Expenses,West Midlands British Transport Police,Clarity Travel Management,000000133151,345.89,Y
Crown Prosecution Service ,10/10/23,Ordinary Witness Expenses,London South RASSO,Clarity Travel Management,000000133151,"2,693.12",Y
Crown Prosecution Service ,10/10/23,Ordinary Witness Expenses,South East RASSO Unit,Clarity Travel Management,000000133151,255.57,Y
Crown Prosecution Service ,10/10/23,Ordinary Witness Expenses,South West RASSO Unit Crown Court,Clarity Travel Management,000000133151,179.01,Y
Crown Prosecution Service ,10/10/23,Ordinary Witness Expenses,London North RASSO,Clarity Travel Management,000000133151,"2,497.03",Y
Crown Prosecution Service ,10/10/23,Ordinary Witness Expenses,Wessex RASSO Unit,Clarity Travel Management,000000133151,127.31,Y
Crown Prosecution Service ,10/10/23,Ordinary Witness Expenses,London North Crown Court Unit,Clarity Travel Management,000000133151,"3,125.36",Y
Crown Prosecution Service ,10/10/23,Ordinary Witness Expenses,London North Complex Casework Unit,Clarity Travel Management,000000133151,"1,983.64",Y
Crown Prosecution Service ,10/10/23,Ordinary Witness Expenses,Cymru Wales South East Crown Court,Clarity Travel Management,000000133151,64.79,Y
Crown Prosecution Service ,10/10/23,Ordinary Witness Expenses,Yorks and Humbs Mags Court Legal,Clarity Travel Management,000000133151,"2,085.02",Y
Crown Prosecution Service ,10/10/23,Ordinary Witness Expenses,Cymru Wales RASSO unit,Clarity Travel Management,000000133151,294.00,Y
Crown Prosecution Service ,10/10/23,Ordinary Witness Expenses,London South Crown Court Unit,Clarity Travel Management,000000133151,739.41,Y
Crown Prosecution Service ,10/10/23,Ordinary Witness Expenses,South West Crown Court,Clarity Travel Management,000000133151,559.19,Y
Crown Prosecution Service ,10/10/23,Ordinary Witness Expenses,East of England Crown Court,Clarity Travel Management,000000133151,409.98,
Crown Prosecution Service ,10/10/23,Ordinary Witness Expenses,Cymru Wales North Magistrates Court,Clarity Travel Management,000000133151,300.30,
Crown Prosecution Service ,10/10/23,Ordinary Witness Expenses,Mersey Cheshire Crown Court Unit,Clarity Travel Management,000000133151,678.38,
Crown Prosecution Service ,10/10/23,Ordinary Witness Expenses,Mersey Cheshire Magistrates Court Unit,Clarity Travel Management,000000133151,15.20,
Crown Prosecution Service ,10/10/23,Ordinary Witness Expenses,West Midlands Magistrates Court Unit,Clarity Travel Management,000000133151,94.50,
Crown Prosecution Service ,10/10/23,Ordinary Witness Expenses,North West Crown Court Hub,Clarity Travel Management,000000133151,49.40,
Crown Prosecution Service ,10/10/23,Ordinary Witness Expenses,South East Magistrates Court,Clarity Travel Management,000000133151,24.40,
Crown Prosecution Service ,10/10/23,Ordinary Witness Expenses,South West Complex Casework Unit,Clarity Travel Management,000000133151,373.70,
Crown Prosecution Service ,10/10/23,Ordinary Witness Expenses,Wessex Crown Court Unit,Clarity Travel Management,000000133151,48.90,
Crown Prosecution Service ,10/10/23,Ordinary Witness Expenses,Yorks and Humbs CC Legal,Clarity Travel Management,000000133151,68.60,
Crown Prosecution Service ,10/10/23,Ordinary Witness Expenses,North West RASSO Unit,Clarity Travel Management,000000133151,476.70,
Crown Prosecution Service ,10/10/23,Ordinary Witness Expenses,West Midlands Crown Court Unit,Clarity Travel Management,000000133151,"20,602.52",
Crown Prosecution Service ,10/10/23,Ordinary Witness Expenses,East Midlands Crown Court Section,Clarity Travel Management,000000133151,296.10,
Crown Prosecution Service ,10/10/23,Ordinary Witness Expenses,West Midlands RASSO Unit,Clarity Travel Management,000000140515,547.50,
Crown Prosecution Service ,10/10/23,Ordinary Witness Expenses,Cymru Wales Complex Casework Unit,Clarity Travel Management,000000140515,300.30,
Crown Prosecution Service ,10/10/23,Ordinary Witness Expenses,East of England Crown Court,Clarity Travel Management,000000140515,684.35,
Crown Prosecution Service ,10/10/23,Ordinary Witness Expenses,East Midlands Crown Court Section,Clarity Travel Management,000000140515,325.50,
Crown Prosecution Service ,10/10/23,Ordinary Witness Expenses,West Midlands Magistrates Court Unit,Clarity Travel Management,000000140515,244.07,Y
Crown Prosecution Service ,10/10/23,Ordinary Witness Expenses,North West RASSO Unit,Clarity Travel Management,000000140515,"1,142.69",Y
Crown Prosecution Service ,10/10/23,Ordinary Witness Expenses,London South Magistrates Court Unit,Clarity Travel Management,000000140515,498.49,Y
Crown Prosecution Service ,10/10/23,Ordinary Witness Expenses,Cymru Wales North Magistrates Court,Clarity Travel Management,000000140515,87.00,Y
Crown Prosecution Service ,10/10/23,Ordinary Witness Expenses,South West RASSO Unit Crown Court,Clarity Travel Management,000000140515,"1,238.66",Y
Crown Prosecution Service ,10/10/23,Ordinary Witness Expenses,Cymru Wales RASSO unit,Clarity Travel Management,000000140515,323.01,Y
Crown Prosecution Service ,10/10/23,Ordinary Witness Expenses,London South Crown Court Unit,Clarity Travel Management,000000140515,"2,795.76",Y
Crown Prosecution Service ,10/10/23,Ordinary Witness Expenses,South West Magistrates Court,Clarity Travel Management,000000140515,119.95,Y
Crown Prosecution Service ,10/10/23,Ordinary Witness Expenses,Mersey Cheshire Magistrates Court Unit,Clarity Travel Management,000000140515,264.49,Y
Crown Prosecution Service ,10/10/23,Ordinary Witness Expenses,London North Crown Court Unit,Clarity Travel Management,000000140515,915.10,Y
Crown Prosecution Service ,10/10/23,Ordinary Witness Expenses,Wessex Crown Court Unit,Clarity Travel Management,000000140515,474.75,Y
Crown Prosecution Service ,10/10/23,Ordinary Witness Expenses,London North RASSO,Clarity Travel Management,000000140515,"6,787.35",Y
Crown Prosecution Service ,10/10/23,Ordinary Witness Expenses,South West Complex Casework Unit,Clarity Travel Management,000000140515,281.01,Y
Crown Prosecution Service ,10/10/23,Ordinary Witness Expenses,South East RASSO Unit,Clarity Travel Management,000000140515,12.29,Y
Crown Prosecution Service ,10/10/23,Ordinary Witness Expenses,Yorks and Humbs Mags Court Legal,Clarity Travel Management,000000140515,"2,722.50",Y
Crown Prosecution Service ,10/10/23,Ordinary Witness Expenses,London South RASSO,Clarity Travel Management,000000140515,513.10,Y
Crown Prosecution Service ,10/10/23,Ordinary Witness Expenses,West Midlands Crown Court Unit,Clarity Travel Management,000000140515,"1,168.17",Y
Crown Prosecution Service ,10/10/23,Ordinary Witness Expenses,East of England Complex Casework Unit,Clarity Travel Management,000000140515,323.26,Y
Crown Prosecution Service ,10/10/23,Ordinary Witness Expenses,South West Crown Court,Clarity Travel Management,000000140515,"4,461.11",Y
Crown Prosecution Service ,10/10/23,Ordinary Witness Expenses,London North Complex Casework Unit,Clarity Travel Management,000000140515,463.11,Y
Crown Prosecution Service ,10/10/23,Ordinary Witness Expenses,Wessex RASSO Unit,Clarity Travel Management,000000140515,516.36,Y
Crown Prosecution Service ,10/10/23,Ordinary Witness Expenses,North West Crown Court Hub,Clarity Travel Management,000000140515,176.20,Y
Crown Prosecution Service ,10/10/23,Ordinary Witness Expenses,Cymru Wales West Magistrates Court,Clarity Travel Management,000000140515,93.00,Y
Crown Prosecution Service ,10/10/23,Ordinary Witness Expenses,East of England RASSO Unit,Clarity Travel Management,000000140515,340.00,Y
Crown Prosecution Service ,10/10/23,Ordinary Witness Expenses,Cymru Wales South East Crown Court,Clarity Travel Management,000000140515,97.00,Y
Crown Prosecution Service ,10/10/23,Ordinary Witness Expenses,West Midlands British Transport Police,Clarity Travel Management,000000140515,69.00,Y
Crown Prosecution Service ,10/10/23,Ordinary Witness Expenses,East Midlands RASSO Unit,Clarity Travel Management,000000140515,35.70,
Crown Prosecution Service ,10/10/23,Ordinary Witness Expenses,North West Magistrates Court Hub,Clarity Travel Management,000000140515,611.00,
Crown Prosecution Service ,10/10/23,Ordinary Witness Expenses,Thames Chiltern Crown Court Unit,Clarity Travel Management,000000140515,445.50,
Crown Prosecution Service ,10/10/23,Ordinary Witness Expenses,RWD North Unit,Clarity Travel Management,000000140515,34.10,
Crown Prosecution Service ,10/10/23,Ordinary Witness Expenses,OCSAU,Clarity Travel Management,000000140515,"3,508.11",
Crown Prosecution Service ,10/10/23,Ordinary Witness Expenses,Yorks and Humbs CC Legal,Clarity Travel Management,000000140515,127.60,
Crown Prosecution Service ,10/10/23,Ordinary Witness Expenses,North East RASSO Unit,Clarity Travel Management,000000140515,256.10,
Crown Prosecution Service ,31/10/23,Ordinary Witness Expenses,East of England RASSO Unit,Clarity Travel Management,000000140961,178.69,Y
Crown Prosecution Service ,31/10/23,Ordinary Witness Expenses,East Midlands Magistrates Court Section,Clarity Travel Management,000000140961,130.70,
Crown Prosecution Service ,31/10/23,Ordinary Witness Expenses,London South RASSO,Clarity Travel Management,000000140961,194.88,Y
Crown Prosecution Service ,31/10/23,Ordinary Witness Expenses,London South Crown Court Unit,Clarity Travel Management,000000140961,"1,389.28",Y
Crown Prosecution Service ,31/10/23,Ordinary Witness Expenses,South West Crown Court,Clarity Travel Management,000000140961,739.56,Y
Crown Prosecution Service ,31/10/23,Ordinary Witness Expenses,Thames Chiltern Crown Court Unit,Clarity Travel Management,000000140961,745.47,Y
Crown Prosecution Service ,31/10/23,Ordinary Witness Expenses,East Midlands Complex Casework Unit,Clarity Travel Management,000000140961,372.00,Y
Crown Prosecution Service ,31/10/23,Ordinary Witness Expenses,South East Magistrates Court,Clarity Travel Management,000000140961,790.95,Y
Crown Prosecution Service ,31/10/23,Ordinary Witness Expenses,Yorks and Humbs Mags Court Legal,Clarity Travel Management,000000140961,804.62,Y
Crown Prosecution Service ,31/10/23,Ordinary Witness Expenses,London North RASSO,Clarity Travel Management,000000140961,"1,158.67",Y
Crown Prosecution Service ,31/10/23,Ordinary Witness Expenses,North West RASSO Unit,Clarity Travel Management,000000140961,"5,918.57",Y
Crown Prosecution Service ,31/10/23,Ordinary Witness Expenses,Yorks and Humbs CC Legal,Clarity Travel Management,000000140961,"2,913.34",Y
Crown Prosecution Service ,31/10/23,Ordinary Witness Expenses,West Midlands Crown Court Unit,Clarity Travel Management,000000140961,858.44,Y
Crown Prosecution Service ,31/10/23,Ordinary Witness Expenses,Mersey Cheshire Crown Court Unit,Clarity Travel Management,000000140961,296.70,Y
Crown Prosecution Service ,31/10/23,Ordinary Witness Expenses,West Midlands RASSO Unit,Clarity Travel Management,000000140961,433.75,Y
Crown Prosecution Service ,31/10/23,Ordinary Witness Expenses,East of England Crown Court,Clarity Travel Management,000000140961,"1,837.88",Y
Crown Prosecution Service ,31/10/23,Ordinary Witness Expenses,West Midlands British Transport Police,Clarity Travel Management,000000140961,17.45,Y
Crown Prosecution Service ,31/10/23,Ordinary Witness Expenses,South West RASSO Unit Crown Court,Clarity Travel Management,000000140961,766.70,Y
Crown Prosecution Service ,31/10/23,Ordinary Witness Expenses,South East Complex Casework Unit,Clarity Travel Management,000000140961,100.04,Y
Crown Prosecution Service ,31/10/23,Ordinary Witness Expenses,Wessex RASSO Unit,Clarity Travel Management,000000140961,445.78,Y
Crown Prosecution Service ,31/10/23,Ordinary Witness Expenses,South East RASSO Unit,Clarity Travel Management,000000140961,"2,559.32",Y
Crown Prosecution Service ,31/10/23,Ordinary Witness Expenses,South West Complex Casework Unit,Clarity Travel Management,000000140961,23.00,Y
Crown Prosecution Service ,31/10/23,Ordinary Witness Expenses,East Midlands RASSO Unit,Clarity Travel Management,000000140961,"1,637.10",Y
Crown Prosecution Service ,31/10/23,Ordinary Witness Expenses,East of England Complex Casework Unit,Clarity Travel Management,000000140961,277.98,Y
Crown Prosecution Service ,31/10/23,Ordinary Witness Expenses,Mersey Cheshire Magistrates Court Unit,Clarity Travel Management,000000140961,59.30,Y
Crown Prosecution Service ,31/10/23,Ordinary Witness Expenses,Wessex Crown Court Unit,Clarity Travel Management,000000140961,533.79,Y
Crown Prosecution Service ,31/10/23,Ordinary Witness Expenses,West Midlands Magistrates Court Unit,Clarity Travel Management,000000140961,117.44,Y
Crown Prosecution Service ,31/10/23,Ordinary Witness Expenses,East Midlands Crown Court Section,Clarity Travel Management,000000140961,172.48,Y
Crown Prosecution Service ,31/10/23,Ordinary Witness Expenses,SEOC Team 2,Clarity Travel Management,000000140961,592.86,Y
Crown Prosecution Service ,31/10/23,Ordinary Witness Expenses,Mersey Cheshire RASSO Unit,Clarity Travel Management,000000140961,13.70,
Crown Prosecution Service ,31/10/23,Ordinary Witness Expenses,North East RASSO Unit,Clarity Travel Management,000000140961,145.90,
Crown Prosecution Service ,31/10/23,Ordinary Witness Expenses,London South Complex Casework Unit,Clarity Travel Management,000000140961,102.80,
Crown Prosecution Service ,31/10/23,Ordinary Witness Expenses,RWD Midlands Wales Unit,Clarity Travel Management,000000140961,130.70,
Crown Prosecution Service ,31/10/23,Ordinary Witness Expenses,Yorkshire and Humberside Complex Casework Unit,Clarity Travel Management,000000140961,460.00,
Crown Prosecution Service ,31/10/23,Ordinary Witness Expenses,London North Magistrates Court Unit,Clarity Travel Management,000000140961,"4,235.22",
Crown Prosecution Service ,31/10/23,Ordinary Witness Expenses,London South Magistrates Court Unit,Clarity Travel Management,000000140961,100.30,
Crown Prosecution Service ,31/10/23,Ordinary Witness Expenses,North West Magistrates Court Hub,Clarity Travel Management,000000140961,279.08,Y
Crown Prosecution Service ,13/10/23,Crown Court Graduated Fee Scheme,North East RASSO Unit,Trinity Chambers,0000008091,"36,499.06",Y
Crown Prosecution Service ,13/10/23,Recoverable VAT control,Balance Sheet,Iron Mountain Ltd,0784156,"6,614.80",Y
Crown Prosecution Service ,13/10/23,File Storage,DID Security and Information,Iron Mountain Ltd,0784156,"33,074.00",
Crown Prosecution Service ,16/10/23,Crown Court Graduated Fee Scheme,London North Complex Casework Unit,6 Kings Bench Walk- Chambers of D Fisher & D Perry,102586 - ,"42,590.40",Y
Crown Prosecution Service ,04/10/23,Crown Court Graduated Fee Scheme,London North Crown Court Unit,6 Kings Bench Walk- Chambers of D Fisher & D Perry,104438 BW,"48,028.20",Y
Crown Prosecution Service ,04/10/23,Crown Court Graduated Fee Scheme,London North Crown Court Unit,6 Kings Bench Walk- Chambers of D Fisher & D Perry,104438 LH,"26,951.40",Y
Crown Prosecution Service ,16/10/23,Crown Court Very High Cost Cases Full Scheme,SEOC Team 1,6 Kings Bench Walk- Chambers of D Fisher & D Perry,104873 - TB,"29,175.00",Y
Crown Prosecution Service ,18/10/23,Crown Court Graduated Fee Scheme,London South Crown Court Unit,6 Kings Bench Walk- Chambers of D Fisher & D Perry,105248 DB,"29,826.84",Y
Crown Prosecution Service ,18/10/23,Crown Court Graduated Fee Scheme,Thames and Chiltern Complex Casework Unit,2 Harcourt Buildings,117918 NAL TRIAL,"41,759.04",Y
Crown Prosecution Service ,20/10/23,Crown Court Graduated Fee Scheme,East Midlands Crown Court Section,Harrington Street Chambers,1185405/AJF,"85,481.94",
Crown Prosecution Service ,04/10/23,Crown Court Graduated Fee Scheme,London North Complex Casework Unit,2 Harcourt Buildings,118640 PCA,"32,469.84",Y
Crown Prosecution Service ,26/10/23,Crown Court Very High Cost Cases Full Scheme,RWD Midlands Wales Unit,5 Paper Buildings,118791/JMC5,"26,736.60",Y
Crown Prosecution Service ,09/10/23,Advice/PreSending Very High Cost Cases Full Scheme,RWD North Unit,St Pauls Chambers Leeds,140408 Inc44 HWA,"36,735.60",Y
Crown Prosecution Service ,27/10/23,Crown Court Graduated Fee Scheme,Thames and Chiltern Complex Casework Unit,6 Pump Court The Chambers of Mr Stephen Hockman,155516/kb1,"31,096.92",Y
Crown Prosecution Service ,23/10/23,Crown Court Very High Cost Cases Full Scheme,RWD Midlands Wales Unit,Red Lion Chambers (18 RLC),158269THPstage6sept,"36,235.70",Y
Crown Prosecution Service ,18/10/23,Crown Court Graduated Fee Scheme,Thames and Chiltern Complex Casework Unit,6 Pump Court The Chambers of Mr Stephen Hockman,161919/EK2,"28,320.00",Y
Crown Prosecution Service ,16/10/23,Crown Court Graduated Fee Scheme,East of England Crown Court,Red Lion Chambers (18 RLC),163297SPRretrial,"25,127.68",Y
Crown Prosecution Service ,06/10/23,Crown Court Graduated Fee Scheme,South East RASSO Unit,6 Pump Court The Chambers of Mr Stephen Hockman,166242/NE,"30,776.40",Y
Crown Prosecution Service ,16/10/23,Crown Court Very High Cost Cases Full Scheme,RWD North Unit,St Pauls Chambers Leeds,168223,"48,223.20",Y
Crown Prosecution Service ,17/10/23,IT non capital equipment and consumables,DTS Programme Project Cost,Ergo Computing Ltd Nottingham,17491,"29,375.94",Y
Crown Prosecution Service ,23/10/23,Crown Court Graduated Fee Scheme,London North Complex Casework Unit,Furnival Chambers,178142,"28,818.00",Y
Crown Prosecution Service ,09/10/23,Crown Court Graduated Fee Scheme,West Midlands Complex Casework Unit,23 Essex Street Chambers,180023-PD,"35,891.04",Y
Crown Prosecution Service ,20/10/23,Crown Court Very High Cost Cases Full Scheme,East Midlands Complex Casework Unit,Seven Bedford Row,181065 - al2,"27,130.00",Y
Crown Prosecution Service ,20/10/23,Crown Court Very High Cost Cases Full Scheme,East Midlands Complex Casework Unit,Seven Bedford Row,181065 - al3,"35,397.00",Y
Crown Prosecution Service ,20/10/23,Crown Court Very High Cost Cases Full Scheme,East Midlands Crown Court Section,Seven Bedford Row,194737AL1,"84,750.24",Y
Crown Prosecution Service ,27/10/23,Crown Court Graduated Fee Scheme,Thames and Chiltern Complex Casework Unit,23 Essex Street Chambers,199330-ALG-1,"50,266.44",Y
Crown Prosecution Service ,16/10/23,Crown Court Graduated Fee Scheme,London South Crown Court Unit,Foundry Chambers (9-12 Bell Yard),199414MS,"31,357.92",Y
Crown Prosecution Service ,27/10/23,Crown Court Very High Cost Cases Full Scheme,London South Complex Casework Unit,Foundry Chambers (9-12 Bell Yard),199783/LG,"59,198.40",Y
Crown Prosecution Service ,03/10/23,Overseas Education School Fees: FCO approved schools,Intl Liaison Prosecutors,"Foreign, Commonwealth and Development Office",20009656,"16,151.17",
Crown Prosecution Service ,03/10/23,Salaries Overseas locally employed Admin,Intl Liaison Prosecutors,"Foreign, Commonwealth and Development Office",20009656,483.35,
Crown Prosecution Service ,03/10/23,Telephony mobile phones and dongles,Intl Liaison Prosecutors,"Foreign, Commonwealth and Development Office",20009656,16.65,
Crown Prosecution Service ,03/10/23,Salaries Overseas locally employed Admin,Intl Liaison Prosecutors,"Foreign, Commonwealth and Development Office",20009656,72.64,
Crown Prosecution Service ,03/10/23,Telephony mobile phones and dongles,Intl Liaison Prosecutors,"Foreign, Commonwealth and Development Office",20009656,127.65,
Crown Prosecution Service ,03/10/23,Overseas Education School Fees: FCO approved schools,Intl Liaison Prosecutors,"Foreign, Commonwealth and Development Office",20009656,"6,866.30",
Crown Prosecution Service ,03/10/23,Overseas Medical Other health care costs,Intl Liaison Prosecutors,"Foreign, Commonwealth and Development Office",20009656,206.31,
Crown Prosecution Service ,03/10/23,Telephony mobile phones and dongles,Intl Liaison Prosecutors,"Foreign, Commonwealth and Development Office",20009656,6.55,
Crown Prosecution Service ,03/10/23,Salaries Overseas locally employed Admin,Intl Liaison Prosecutors,"Foreign, Commonwealth and Development Office",20009656,"1,072.88",
Crown Prosecution Service ,03/10/23,Telephony mobile phones and dongles,Intl Liaison Prosecutors,"Foreign, Commonwealth and Development Office",20009656,99.87,
Crown Prosecution Service ,03/10/23,Salaries Overseas locally employed Admin,Intl Liaison Prosecutors,"Foreign, Commonwealth and Development Office",20009656,117.34,
Crown Prosecution Service ,03/10/23,Telephony mobile phones and dongles,Intl Liaison Prosecutors,"Foreign, Commonwealth and Development Office",20009656,17.52,
Crown Prosecution Service ,27/10/23,FCO platform charges excluding leases,Intl Liaison Prosecutors,"Foreign, Commonwealth and Development Office",20009779,"13,800.00",
Crown Prosecution Service ,27/10/23,Overseas Residential accommodation,Intl Liaison Prosecutors,"Foreign, Commonwealth and Development Office",20009779,"7,275.00",
Crown Prosecution Service ,27/10/23,Overseas Residential accommodation,Intl Liaison Prosecutors,"Foreign, Commonwealth and Development Office",20009779,"4,600.00",
Crown Prosecution Service ,27/10/23,FCO platform charges excluding leases,Intl Liaison Prosecutors,"Foreign, Commonwealth and Development Office",20009779,"13,925.00",
Crown Prosecution Service ,27/10/23,FCO platform charges excluding leases,Intl Liaison Prosecutors,"Foreign, Commonwealth and Development Office",20009779,"14,048.98",
Crown Prosecution Service ,27/10/23,FCO platform charges excluding leases,Intl Liaison Prosecutors,"Foreign, Commonwealth and Development Office",20009779,"10,225.00",
Crown Prosecution Service ,27/10/23,FCO platform charges excluding leases,Intl Liaison Prosecutors,"Foreign, Commonwealth and Development Office",20009779,"7,225.00",
Crown Prosecution Service ,27/10/23,Overseas Residential accommodation,Intl Liaison Prosecutors,"Foreign, Commonwealth and Development Office",20009779,"8,700.00",
Crown Prosecution Service ,27/10/23,Overseas Residential accommodation,Intl Liaison Prosecutors,"Foreign, Commonwealth and Development Office",20009779,"4,775.00",
Crown Prosecution Service ,27/10/23,FCO platform charges excluding leases,Intl Liaison Prosecutors,"Foreign, Commonwealth and Development Office",20009779,"18,100.00",
Crown Prosecution Service ,27/10/23,Overseas Residential accommodation,Intl Liaison Prosecutors,"Foreign, Commonwealth and Development Office",20009779,"13,125.00",
Crown Prosecution Service ,27/10/23,Overseas Residential accommodation,Intl Liaison Prosecutors,"Foreign, Commonwealth and Development Office",20009779,"7,175.00",
Crown Prosecution Service ,27/10/23,FCO platform charges excluding leases,Intl Liaison Prosecutors,"Foreign, Commonwealth and Development Office",20009779,"11,800.00",
Crown Prosecution Service ,27/10/23,Overseas Residential accommodation,Intl External Funding,"Foreign, Commonwealth and Development Office",20009779,"5,800.00",
Crown Prosecution Service ,27/10/23,FCO platform charges excluding leases,Intl Liaison Prosecutors,"Foreign, Commonwealth and Development Office",20009779,"11,400.00",
Crown Prosecution Service ,27/10/23,FCO platform charges excluding leases,Intl Liaison Prosecutors,"Foreign, Commonwealth and Development Office",20009779,"20,700.00",
Crown Prosecution Service ,27/10/23,Overseas Residential accommodation,Intl Liaison Prosecutors,"Foreign, Commonwealth and Development Office",20009779,"12,800.00",
Crown Prosecution Service ,27/10/23,FCO platform charges excluding leases,Intl Liaison Prosecutors,"Foreign, Commonwealth and Development Office",20009779,"18,100.00",
Crown Prosecution Service ,27/10/23,FCO platform charges excluding leases,Intl Liaison Prosecutors,"Foreign, Commonwealth and Development Office",20009779,"14,050.00",
Crown Prosecution Service ,27/10/23,FCO platform charges excluding leases,Intl Liaison Prosecutors,"Foreign, Commonwealth and Development Office",20009779,"6,050.00",
Crown Prosecution Service ,27/10/23,Overseas Residential accommodation,Intl Liaison Prosecutors,"Foreign, Commonwealth and Development Office",20009779,"8,400.00",
Crown Prosecution Service ,27/10/23,Overseas Residential accommodation,Intl Liaison Prosecutors,"Foreign, Commonwealth and Development Office",20009779,"9,300.00",
Crown Prosecution Service ,27/10/23,FCO platform charges excluding leases,Intl Liaison Prosecutors,"Foreign, Commonwealth and Development Office",20009779,"8,900.00",
Crown Prosecution Service ,27/10/23,Overseas Residential accommodation,Intl Liaison Prosecutors,"Foreign, Commonwealth and Development Office",20009779,"7,800.00",
Crown Prosecution Service ,27/10/23,Overseas Residential accommodation,Intl Liaison Prosecutors,"Foreign, Commonwealth and Development Office",20009779,"4,225.00",
Crown Prosecution Service ,27/10/23,FCO platform charges excluding leases,Intl External Funding,"Foreign, Commonwealth and Development Office",20009779,"6,925.00",
Crown Prosecution Service ,27/10/23,FCO platform charges excluding leases,Intl Liaison Prosecutors,"Foreign, Commonwealth and Development Office",20009779,"5,900.00",
Crown Prosecution Service ,27/10/23,FCO platform charges excluding leases,Intl Liaison Prosecutors,"Foreign, Commonwealth and Development Office",20009779,"17,800.00",
Crown Prosecution Service ,27/10/23,Overseas Residential accommodation,Intl Liaison Prosecutors,"Foreign, Commonwealth and Development Office",20009779,"4,375.00",
Crown Prosecution Service ,27/10/23,FCO platform charges excluding leases,Intl Liaison Prosecutors,"Foreign, Commonwealth and Development Office",20009779,"7,550.00",
Crown Prosecution Service ,27/10/23,FCO platform charges excluding leases,Intl Liaison Prosecutors,"Foreign, Commonwealth and Development Office",20009779,"9,825.00",
Crown Prosecution Service ,27/10/23,Overseas Residential accommodation,Intl Liaison Prosecutors,"Foreign, Commonwealth and Development Office",20009779,"5,000.00",
Crown Prosecution Service ,27/10/23,Overseas Residential accommodation,Intl Liaison Prosecutors,"Foreign, Commonwealth and Development Office",20009779,"6,450.00",
Crown Prosecution Service ,27/10/23,Overseas Residential accommodation,Intl Liaison Prosecutors,"Foreign, Commonwealth and Development Office",20009779,"10,000.00",
Crown Prosecution Service ,06/10/23,Other Staff Costs,Intl Liaison Prosecutors,"Foreign, Commonwealth and Development Office",20009814,"2,000.00",
Crown Prosecution Service ,06/10/23,Overseas Education School Fees: FCO approved schools,Intl Liaison Prosecutors,"Foreign, Commonwealth and Development Office",20009814,"2,578.89",
Crown Prosecution Service ,06/10/23,Salaries Overseas locally employed Admin,Intl Liaison Prosecutors,"Foreign, Commonwealth and Development Office",20009814,983.38,
Crown Prosecution Service ,06/10/23,Salaries Overseas locally employed Admin,Intl Liaison Prosecutors,"Foreign, Commonwealth and Development Office",20009814,"3,603.15",
Crown Prosecution Service ,06/10/23,Salaries Overseas locally employed Admin,Intl Liaison Prosecutors,"Foreign, Commonwealth and Development Office",20009814,"3,601.32",
Crown Prosecution Service ,06/10/23,Salaries Overseas locally employed Admin,Intl Liaison Prosecutors,"Foreign, Commonwealth and Development Office",20009814,"3,118.27",
Crown Prosecution Service ,06/10/23,Salaries Overseas locally employed Admin,Intl Liaison Prosecutors,"Foreign, Commonwealth and Development Office",20009814,"1,379.18",
Crown Prosecution Service ,06/10/23,Telephony mobile phones and dongles,Intl Liaison Prosecutors,"Foreign, Commonwealth and Development Office",20009814,7.57,
Crown Prosecution Service ,06/10/23,Salaries Overseas locally employed Admin,Intl Liaison Prosecutors,"Foreign, Commonwealth and Development Office",20009814,"5,206.70",
Crown Prosecution Service ,06/10/23,Telephony mobile phones and dongles,Intl Liaison Prosecutors,"Foreign, Commonwealth and Development Office",20009814,14.53,
Crown Prosecution Service ,06/10/23,Overseas Education School Fees: FCO approved schools,Intl Liaison Prosecutors,"Foreign, Commonwealth and Development Office",20009814,"1,711.53",
Crown Prosecution Service ,06/10/23,Salaries Overseas locally employed Admin,Intl Liaison Prosecutors,"Foreign, Commonwealth and Development Office",20009814,"2,609.24",
Crown Prosecution Service ,06/10/23,Overseas Education School Fees: FCO approved schools,Intl Liaison Prosecutors,"Foreign, Commonwealth and Development Office",20009814,"14,121.59",
Crown Prosecution Service ,06/10/23,Overseas Education School Fees: FCO approved schools,Intl Liaison Prosecutors,"Foreign, Commonwealth and Development Office",20009814,"3,266.60",
Crown Prosecution Service ,06/10/23,Plans Photos and Documents,East of England Crown Court,"Foreign, Commonwealth and Development Office",20009814,96.65,
Crown Prosecution Service ,09/10/23,Crown Court Very High Cost Cases Full Scheme,SEOC Team 2,Foundry Chambers (9-12 Bell Yard),200635/JM,"46,300.20",Y
Crown Prosecution Service ,19/10/23,Crown Court Graduated Fee Scheme,East Midlands Crown Court Section,23 Essex Street Chambers,202969-TC,"43,551.48",Y
Crown Prosecution Service ,27/10/23,Professional subscriptions and memberships,Operational Change,Crimeline Training Ltd Wigan,21483,"45,106.80",Y
Crown Prosecution Service ,13/10/23,Crown Court Graduated Fee Scheme,East Midlands Crown Court Section,36 Bedford Row,216365/MPR,"150,139.20",Y
Crown Prosecution Service ,16/10/23,Crown Court Graduated Fee Scheme,East Midlands Crown Court Section,36 Bedford Row,216365/SAH2,"71,127.60",Y
Crown Prosecution Service ,12/10/23,IT non capital software licences,Legal Reference and ICT Licenses,Trustmarque Solutions Ltd,2371471,"209,197.56",Y
Crown Prosecution Service ,25/10/23,IT non capital software licences,Legal Reference and ICT Licenses,Trustmarque Solutions Ltd,2372358,"70,278.91",Y
Crown Prosecution Service ,16/10/23,Crown Court Graduated Fee Scheme,Counter Terrorism Unit: Internal Funding,3 Raymond Buildings,255113 -JGY,"26,935.32",Y
Crown Prosecution Service ,18/10/23,Crown Court Graduated Fee Scheme,East Midlands Crown Court Section,1 High Pavement Chambers,278655,"42,717.60",Y
Crown Prosecution Service ,30/10/23,Crown Court Graduated Fee Scheme,West Midlands Complex Casework Unit,2 Kings Bench Walk London,296944-SHKC1,"38,974.80",
Crown Prosecution Service ,18/10/23,Crown Court Graduated Fee Scheme,Thames and Chiltern Complex Casework Unit,2 Kings Bench Walk London,297766-CHE-OFB1,"30,389.88",
Crown Prosecution Service ,31/10/23,Crown Court Graduated Fee Scheme,Thames and Chiltern Complex Casework Unit,2 Kings Bench Walk London,297766-CHE-OFB2,"50,823.84",
Crown Prosecution Service ,18/10/23,Crown Court Graduated Fee Scheme,Thames and Chiltern Complex Casework Unit,2 Kings Bench Walk London,297766-MJS-OFB1,"45,345.96",
Crown Prosecution Service ,31/10/23,Crown Court Graduated Fee Scheme,Thames and Chiltern Complex Casework Unit,2 Kings Bench Walk London,297766-MJS-OFB2,"70,467.60",
Crown Prosecution Service ,30/10/23,IT services,DTS Programme Project Cost,Accenture (UK) Ltd London,3003633120,"87,700.50",Y
Crown Prosecution Service ,18/10/23,Crown Court Graduated Fee Scheme,South West Crown Court,2 Kings Bench Walk London,300822-RA-OFB1,"32,481.00",
Crown Prosecution Service ,17/10/23,Crown Court Graduated Fee Scheme,North East Crown Court Unit,New Park Court Chambers Leeds,367670/SBKC,"25,098.00",Y
Crown Prosecution Service ,19/10/23,Crown Court Very High Cost Cases Full Scheme,Mersey Cheshire Complex Casework Unit,New Park Court Chambers Leeds,369965-3/PGKC,"30,405.68",Y
Crown Prosecution Service ,19/10/23,Salaries Temporary Admin,Strategy and Policy,Cabinet Office RM Shared Services,3832861,"31,291.00",
Crown Prosecution Service ,26/10/23,Shared services,DID DTS Change,Cabinet Office RM Shared Services,3833398,"30,582.00",
Crown Prosecution Service ,31/10/23,Crown Court Graduated Fee Scheme,West Midlands Crown Court Unit,Cornwall Street Chambers,406982/AMKC,"39,691.44",Y
Crown Prosecution Service ,13/10/23,IT non capital software licences,Legal Reference and ICT Licenses,Oracle Corporation UK Ltd,460102610,"27,144.95",Y
Crown Prosecution Service ,24/10/23,Recoverable VAT control,Balance Sheet,Oracle Corporation UK Ltd,460109149,"4,909.44",Y
Crown Prosecution Service ,24/10/23,IT non capital software licences,Legal Reference and ICT Licenses,Oracle Corporation UK Ltd,460109149,"24,547.18",
Crown Prosecution Service ,11/10/23,General Professional Services,DTS Programme Project Cost,NTT Data UK Ltd London,5029424,"449,955.00",Y
Crown Prosecution Service ,11/10/23,General Professional Services,DTS Programme Project Cost,NTT Data UK Ltd London,5029426,"30,156.00",Y
Crown Prosecution Service ,11/10/23,IT services,DTS Programme Project Cost,NTT Data UK Ltd London,5029427,"55,512.00",Y
Crown Prosecution Service ,11/10/23,General Professional Services,DTS Programme Project Cost,NTT Data UK Ltd London,5029490,"86,352.00",Y
Crown Prosecution Service ,11/10/23,General Professional Services,DTS Programme Project Cost,NTT Data UK Ltd London,5029503,"125,394.00",Y
Crown Prosecution Service ,25/10/23,Conference Organisation,DID Central Leadership Team,Calder Communications Ltd Leeds,504833,"33,037.20",Y
Crown Prosecution Service ,25/10/23,Conference Organisation,Private Office,Calder Communications Ltd Leeds,504834,"34,445.00",Y
Crown Prosecution Service ,10/10/23,Crown Court Graduated Fee Scheme,North East Complex Casework Unit,Park Square Barristers (No 6 and Sovereign merged),525155/KMKC,"37,164.96",Y
Crown Prosecution Service ,25/10/23,Crown Court Graduated Fee Scheme,Yorks and Humbs CC Legal,Park Square Barristers (No 6 and Sovereign merged),531372/NXB/TRL,"30,294.96",Y
Crown Prosecution Service ,25/10/23,Crown Court Graduated Fee Scheme,Yorks and Humbs CC Legal,Park Square Barristers (No 6 and Sovereign merged),532714/TGJ/TRL,"25,621.08",Y
Crown Prosecution Service ,23/10/23,Crown Court Very High Cost Cases Full Scheme,East Midlands Complex Casework Unit,Exchange Chambers Leeds ,541980 CTE,"27,966.20",Y
Crown Prosecution Service ,27/10/23,Crown Court Graduated Fee Scheme,South West Crown Court,Devon Chambers,56671 Jewell JM,"25,361.04",Y
Crown Prosecution Service ,20/10/23,Crown Court Graduated Fee Scheme,South West Crown Court,Devon Chambers,57180 Bradley JM1,"26,369.40",Y
Crown Prosecution Service ,06/10/23,Crown Court Graduated Fee Scheme,North West Crown Court Hub,Exchange Chambers - Manchester,629329 AWQC,"26,375.16",Y
Crown Prosecution Service ,16/10/23,IT services,Other IT costs,Lumen Technologies UK Ltd,660151627/2059198,"51,727.82",Y
Crown Prosecution Service ,11/10/23,Admin agency staff,CFO Commercial,Michael Page International Recruitment Limited Slough,6958026,"32,277.00",Y
Crown Prosecution Service ,13/10/23,Crown Court Graduated Fee Scheme,West Midlands Complex Casework Unit,St Philips Chambers,699323 SLKC,"34,383.60",Y
Crown Prosecution Service ,30/10/23,General Professional Services,Strategy and Policy,Aston University Birmingham,75021737,"55,191.60",
Crown Prosecution Service ,20/10/23,Crown Court Graduated Fee Scheme,West Midlands Complex Casework Unit,Thomas Bingham Chambers - (33 Bedford Row),76346 / NM,"47,941.20",
Crown Prosecution Service ,20/10/23,Crown Court Graduated Fee Scheme,West Midlands Complex Casework Unit,Thomas Bingham Chambers - (33 Bedford Row),76346 / RF,"28,074.48",
Crown Prosecution Service ,11/10/23,Crown Court Graduated Fee Scheme,West Midlands Complex Casework Unit,No 5 Fountain Court Chambers,782713/,"53,668.08",Y
Crown Prosecution Service ,23/10/23,Crown Court Graduated Fee Scheme,West Midlands Complex Casework Unit,No 5 Fountain Court Chambers,799200/,"25,272.00",Y
Crown Prosecution Service ,03/10/23,Crown Court Graduated Fee Scheme,Counter Terrorism Unit: Internal Funding,No 5 Fountain Court Chambers,836734/,"34,968.12",Y
Crown Prosecution Service ,17/10/23,Recoverable VAT control,Balance Sheet,DX Network Services Ltd,83933738,"26,243.56",Y
Crown Prosecution Service ,17/10/23,Courier Services,South East Business Centre,DX Network Services Ltd,83933738,"8,815.14",
Crown Prosecution Service ,17/10/23,Courier Services,South West Area Business Centre,DX Network Services Ltd,83933738,"4,100.54",
Crown Prosecution Service ,17/10/23,Courier Services,West Midlands Area Business Centre,DX Network Services Ltd,83933738,"8,280.54",
Crown Prosecution Service ,17/10/23,Courier Services,Estate and FM: Programme,DX Network Services Ltd,83933738,"41,968.76",
Crown Prosecution Service ,17/10/23,Courier Services,Print Contract,DX Network Services Ltd,83933738,"18,812.50",
Crown Prosecution Service ,17/10/23,Courier Services,Yorkshire and Humberside Area Business Centre,DX Network Services Ltd,83933738,"3,593.04",
Crown Prosecution Service ,17/10/23,Courier Services,Cymru Wales Area Business Centre,DX Network Services Ltd,83933738,"3,804.66",
Crown Prosecution Service ,17/10/23,Courier Services,Thames and Chiltern Area Business Centre,DX Network Services Ltd,83933738,"2,955.28",
Crown Prosecution Service ,17/10/23,Courier Services,East Midlands Area Business Centre,DX Network Services Ltd,83933738,"7,536.05",
Crown Prosecution Service ,17/10/23,Courier Services,East of England Area Business Centre,DX Network Services Ltd,83933738,"2,087.81",
Crown Prosecution Service ,17/10/23,Courier Services,North East Area Business Centre,DX Network Services Ltd,83933738,"1,493.97",
Crown Prosecution Service ,17/10/23,Courier Services,North West Area Business Centre,DX Network Services Ltd,83933738,"6,621.40",
Crown Prosecution Service ,17/10/23,Courier Services,Wessex Area Business Centre,DX Network Services Ltd,83933738,"5,218.62",
Crown Prosecution Service ,17/10/23,Courier Services,Mersey Cheshire Area Business Centre,DX Network Services Ltd,83933738,"3,812.50",
Crown Prosecution Service ,17/10/23,Courier Services,Estate and FM: Administration,DX Network Services Ltd,83933738,"12,097.03",
Crown Prosecution Service ,17/10/23,Courier Services,London North Complex Casework Unit,DX Network Services Ltd,83933738,19.91,
Crown Prosecution Service ,09/10/23,Crown Court Graduated Fee Scheme,Counter Terrorism Unit: Internal Funding,No 5 Fountain Court Chambers,839924/MLH/,"50,862.30",Y
Crown Prosecution Service ,11/10/23,Recoverable VAT control,Balance Sheet,Xerox (UK) Ltd,900231245,"4,370.00",Y
Crown Prosecution Service ,11/10/23,Short term leases from 2 to 12 months: IT and Equipment,Print Contract,Xerox (UK) Ltd,900231245,"21,850.00",
Crown Prosecution Service ,23/10/23,Advice/PreSending Very High Cost Cases Full Scheme,Special Crime Unit London,6 Kings Bench Walk- Chambers of D Fisher & D Perry,96616 Stage 28,"27,400.80",Y
Crown Prosecution Service ,25/10/23,Crown Court Graduated Fee Scheme,West Midlands Complex Casework Unit,Citadel Chambers,ALN/683851/,"50,455.20",Y
Crown Prosecution Service ,26/10/23,Recoverable VAT control,Balance Sheet,AVR Transcription Ltd Bolton,AUG23-CPS-36604,"15,945.56",Y
Crown Prosecution Service ,26/10/23,Transcriptions and Translation,Other Corporate Programme Payments,AVR Transcription Ltd Bolton,AUG23-CPS-36604,"79,727.79",
Crown Prosecution Service ,31/10/23,Recoverable VAT control,Balance Sheet,Konica Minolta Business Solutions Limited,Bulk202308,"26,803.19",Y
Crown Prosecution Service ,31/10/23,Lease liability non current lease payments,Balance Sheet,Konica Minolta Business Solutions Limited,Bulk202308,"20,790.00",
Crown Prosecution Service ,31/10/23,Variable lease payment expenses IT and Equipment,Print Contract,Konica Minolta Business Solutions Limited,Bulk202308,"113,225.97",
Crown Prosecution Service ,31/10/23,Recoverable VAT control,Balance Sheet,Konica Minolta Business Solutions Limited,Bulk202309,"36,188.81",Y
Crown Prosecution Service ,31/10/23,Variable lease payment expenses IT and Equipment,Print Contract,Konica Minolta Business Solutions Limited,Bulk202309,"160,154.05",
Crown Prosecution Service ,31/10/23,Lease liability non current lease payments,Balance Sheet,Konica Minolta Business Solutions Limited,Bulk202309,"20,790.00",
Crown Prosecution Service ,11/10/23,UK National rail travel,Corporate Communication,Clarity Travel Management,CPSHQ011023,859.00,
Crown Prosecution Service ,11/10/23,UK National rail travel,PF HR Operations,Clarity Travel Management,CPSHQ011023,"4,271.50",
Crown Prosecution Service ,11/10/23,UK National rail travel,PF Legal Training,Clarity Travel Management,CPSHQ011023,409.60,
Crown Prosecution Service ,11/10/23,UK National rail travel,PF Resourcing,Clarity Travel Management,CPSHQ011023,"1,717.70",
Crown Prosecution Service ,11/10/23,UK National rail travel,CFO Commercial,Clarity Travel Management,CPSHQ011023,"1,265.80",
Crown Prosecution Service ,11/10/23,UK National rail travel,Compliance and Assurance,Clarity Travel Management,CPSHQ011023,"1,309.00",
Crown Prosecution Service ,11/10/23,UK National rail travel,DID Central Leadership Team,Clarity Travel Management,CPSHQ011023,"1,076.40",
Crown Prosecution Service ,11/10/23,UK National rail travel,Victim Transformation Prog,Clarity Travel Management,CPSHQ011023,369.00,
Crown Prosecution Service ,11/10/23,UK National rail travel,CFO Strategic Financial Planning,Clarity Travel Management,CPSHQ011023,514.45,
Crown Prosecution Service ,11/10/23,UK National rail travel,PF HR Business Management,Clarity Travel Management,CPSHQ011023,941.30,
Crown Prosecution Service ,11/10/23,UK National rail travel,DID Operational Process,Clarity Travel Management,CPSHQ011023,"1,196.70",
Crown Prosecution Service ,11/10/23,UK National rail travel,DTUS,Clarity Travel Management,CPSHQ011023,383.30,
Crown Prosecution Service ,11/10/23,UK National rail travel,CFO Fin System Change and Costings,Clarity Travel Management,CPSHQ011023,145.80,
Crown Prosecution Service ,11/10/23,UK Hotels,PF Learning and Development General,Clarity Travel Management,CPSHQ011023,462.72,Y
Crown Prosecution Service ,11/10/23,UK Hotels,PF HR Operations,Clarity Travel Management,CPSHQ011023,447.87,Y
Crown Prosecution Service ,11/10/23,UK Hotels,PF Analytics and Workforce Plan,Clarity Travel Management,CPSHQ011023,153.00,Y
Crown Prosecution Service ,11/10/23,UK Hotels,Central Legal Training Team,Clarity Travel Management,CPSHQ011023,"2,973.42",Y
Crown Prosecution Service ,11/10/23,UK Hotels,PF HR Business Management,Clarity Travel Management,CPSHQ011023,69.00,Y
Crown Prosecution Service ,11/10/23,UK Hotels,Operational Performance,Clarity Travel Management,CPSHQ011023,299.80,Y
Crown Prosecution Service ,11/10/23,UK Hotels,Strategy and Policy,Clarity Travel Management,CPSHQ011023,"1,105.66",Y
Crown Prosecution Service ,11/10/23,UK Hotels,PF People and Business Change,Clarity Travel Management,CPSHQ011023,475.10,Y
Crown Prosecution Service ,11/10/23,UK Hotels,CFO Finance Operations,Clarity Travel Management,CPSHQ011023,323.00,Y
Crown Prosecution Service ,11/10/23,UK Hotels,Press Office,Clarity Travel Management,CPSHQ011023,165.61,Y
Crown Prosecution Service ,11/10/23,UK Hotels,PF Resourcing,Clarity Travel Management,CPSHQ011023,"1,071.00",Y
Crown Prosecution Service ,11/10/23,UK Hotels,Central Operational Training,Clarity Travel Management,CPSHQ011023,"1,005.00",Y
Crown Prosecution Service ,11/10/23,UK Hotels,Permanent Transfer Costs,Clarity Travel Management,CPSHQ011023,443.00,Y
Crown Prosecution Service ,11/10/23,UK Hotels,Corporate Communication,Clarity Travel Management,CPSHQ011023,423.50,Y
Crown Prosecution Service ,11/10/23,UK Hotels,CFO Fin System Change and Costings,Clarity Travel Management,CPSHQ011023,77.00,Y
Crown Prosecution Service ,11/10/23,UK Hotels,PF HR Business Partnering,Clarity Travel Management,CPSHQ011023,498.00,Y
Crown Prosecution Service ,11/10/23,UK Hotels,DID DTS Technology,Clarity Travel Management,CPSHQ011023,"4,488.39",Y
Crown Prosecution Service ,11/10/23,UK Hotels,DID Central Leadership Team,Clarity Travel Management,CPSHQ011023,267.00,Y
Crown Prosecution Service ,11/10/23,UK Hotels,CFO Commercial,Clarity Travel Management,CPSHQ011023,364.00,Y
Crown Prosecution Service ,11/10/23,UK Hotels,Operational Business Support,Clarity Travel Management,CPSHQ011023,146.80,Y
Crown Prosecution Service ,11/10/23,UK Hotels,Director of Legal Services,Clarity Travel Management,CPSHQ011023,156.00,Y
Crown Prosecution Service ,11/10/23,UK Hotels,DID DTS Change,Clarity Travel Management,CPSHQ011023,"1,484.80",Y
Crown Prosecution Service ,11/10/23,UK Hotels,DID Security and Information,Clarity Travel Management,CPSHQ011023,"3,826.98",Y
Crown Prosecution Service ,11/10/23,UK Hotels,Permanent Transfer Costs,Clarity Travel Management,CPSHQ011023,189.00,Y
Crown Prosecution Service ,11/10/23,UK Hotels,Operational Change,Clarity Travel Management,CPSHQ011023,92.00,Y
Crown Prosecution Service ,11/10/23,UK Hotels,Chief Finance Officer,Clarity Travel Management,CPSHQ011023,252.50,Y
Crown Prosecution Service ,11/10/23,UK Hotels,DID Operational Process,Clarity Travel Management,CPSHQ011023,142.00,Y
Crown Prosecution Service ,11/10/23,UK National rail travel,Strategy and Policy,Clarity Travel Management,CPSHQ011023,"2,668.20",
Crown Prosecution Service ,11/10/23,UK National rail travel,Central Legal Training Team,Clarity Travel Management,CPSHQ011023,402.10,
Crown Prosecution Service ,11/10/23,UK National rail travel,Court Business Unit,Clarity Travel Management,CPSHQ011023,"1,304.60",
Crown Prosecution Service ,11/10/23,UK National rail travel,PF People and Business Change,Clarity Travel Management,CPSHQ011023,"1,877.95",
Crown Prosecution Service ,11/10/23,UK National rail travel,Chief Finance Officer,Clarity Travel Management,CPSHQ011023,641.30,
Crown Prosecution Service ,11/10/23,UK National rail travel,PF HR Systems and Information,Clarity Travel Management,CPSHQ011023,222.80,
Crown Prosecution Service ,11/10/23,UK National rail travel,PF HR Business Partnering,Clarity Travel Management,CPSHQ011023,"1,076.50",
Crown Prosecution Service ,11/10/23,UK National rail travel,DID DTS Change,Clarity Travel Management,CPSHQ011023,"2,579.70",
Crown Prosecution Service ,11/10/23,UK National rail travel,Central Operational Training,Clarity Travel Management,CPSHQ011023,"2,745.70",
Crown Prosecution Service ,11/10/23,UK National rail travel,Operational Business Support,Clarity Travel Management,CPSHQ011023,"1,122.70",
Crown Prosecution Service ,11/10/23,UK National rail travel,Permanent Transfer Costs,Clarity Travel Management,CPSHQ011023,226.20,
Crown Prosecution Service ,11/10/23,UK National rail travel,CFO Finance Operations,Clarity Travel Management,CPSHQ011023,409.60,
Crown Prosecution Service ,11/10/23,UK National rail travel,Private Office,Clarity Travel Management,CPSHQ011023,809.30,
Crown Prosecution Service ,11/10/23,UK National rail travel,Operational Performance,Clarity Travel Management,CPSHQ011023,351.10,
Crown Prosecution Service ,11/10/23,UK National rail travel,Operational Change,Clarity Travel Management,CPSHQ011023,"3,265.80",
Crown Prosecution Service ,11/10/23,UK National rail travel,CFO Estates,Clarity Travel Management,CPSHQ011023,"1,002.10",
Crown Prosecution Service ,11/10/23,UK National rail travel,PF Analytics and Workforce Plan,Clarity Travel Management,CPSHQ011023,108.15,
Crown Prosecution Service ,11/10/23,UK National rail travel,DID Security and Information,Clarity Travel Management,CPSHQ011023,"1,766.60",
Crown Prosecution Service ,11/10/23,UK National rail travel,DID DTS Technology,Clarity Travel Management,CPSHQ011023,992.20,
Crown Prosecution Service ,11/10/23,UK National rail travel,PF Learning and Development General,Clarity Travel Management,CPSHQ011023,"2,429.05",
Crown Prosecution Service ,17/10/23,UK Hotels,CFO Fin System Change and Costings,Clarity Travel Management,CPSHQ081023,179.00,Y
Crown Prosecution Service ,17/10/23,UK Hotels,DID Operational Process,Clarity Travel Management,CPSHQ081023,718.22,Y
Crown Prosecution Service ,17/10/23,UK Hotels,PF HR Business Management,Clarity Travel Management,CPSHQ081023,191.64,Y
Crown Prosecution Service ,17/10/23,UK Hotels,Central Legal Training Team,Clarity Travel Management,CPSHQ081023,"3,078.84",Y
Crown Prosecution Service ,17/10/23,UK Hotels,DID DTS Change,Clarity Travel Management,CPSHQ081023,"6,457.32",Y
Crown Prosecution Service ,17/10/23,UK Hotels,DID Security and Information,Clarity Travel Management,CPSHQ081023,"1,191.44",Y
Crown Prosecution Service ,17/10/23,UK Hotels,CFO Finance Operations,Clarity Travel Management,CPSHQ081023,338.00,Y
Crown Prosecution Service ,17/10/23,UK Hotels,PF National Black Crown Prosecutors Association,Clarity Travel Management,CPSHQ081023,354.00,Y
Crown Prosecution Service ,17/10/23,UK Hotels,PF Resourcing,Clarity Travel Management,CPSHQ081023,300.00,Y
Crown Prosecution Service ,17/10/23,UK Hotels,CFO Strategic Financial Planning,Clarity Travel Management,CPSHQ081023,795.00,Y
Crown Prosecution Service ,17/10/23,UK Hotels,PF People and Business Change,Clarity Travel Management,CPSHQ081023,698.40,Y
Crown Prosecution Service ,17/10/23,UK Hotels,Court Business Unit,Clarity Travel Management,CPSHQ081023,415.20,Y
Crown Prosecution Service ,17/10/23,UK Hotels,Permanent Transfer Costs,Clarity Travel Management,CPSHQ081023,141.00,Y
Crown Prosecution Service ,17/10/23,UK Hotels,Private Office,Clarity Travel Management,CPSHQ081023,86.20,Y
Crown Prosecution Service ,17/10/23,UK Hotels,DID Central Leadership Team,Clarity Travel Management,CPSHQ081023,142.70,Y
Crown Prosecution Service ,17/10/23,UK Hotels,CFO Commercial,Clarity Travel Management,CPSHQ081023,720.00,Y
Crown Prosecution Service ,17/10/23,UK Hotels,DID DTS Technology,Clarity Travel Management,CPSHQ081023,"1,592.45",Y
Crown Prosecution Service ,17/10/23,UK Hotels,CFO Estates,Clarity Travel Management,CPSHQ081023,"1,019.80",Y
Crown Prosecution Service ,17/10/23,UK Hotels,Strategy and Policy,Clarity Travel Management,CPSHQ081023,224.79,Y
Crown Prosecution Service ,17/10/23,UK National rail travel,Strategy and Policy,Clarity Travel Management,CPSHQ081023,"2,829.50",
Crown Prosecution Service ,17/10/23,UK National rail travel,DID Security and Information,Clarity Travel Management,CPSHQ081023,"1,193.40",
Crown Prosecution Service ,17/10/23,UK National rail travel,PF HR Business Partnering,Clarity Travel Management,CPSHQ081023,578.00,
Crown Prosecution Service ,17/10/23,UK National rail travel,Corporate Communication,Clarity Travel Management,CPSHQ081023,"1,204.10",
Crown Prosecution Service ,17/10/23,UK National rail travel,CFO Finance Operations,Clarity Travel Management,CPSHQ081023,179.70,
Crown Prosecution Service ,17/10/23,UK National rail travel,CFO Commercial,Clarity Travel Management,CPSHQ081023,"1,582.70",
Crown Prosecution Service ,17/10/23,UK National rail travel,Chief Finance Officer,Clarity Travel Management,CPSHQ081023,319.20,
Crown Prosecution Service ,17/10/23,UK National rail travel,Central Operational Training,Clarity Travel Management,CPSHQ081023,"1,611.10",
Crown Prosecution Service ,17/10/23,UK National rail travel,CFO Strategic Financial Planning,Clarity Travel Management,CPSHQ081023,99.40,
Crown Prosecution Service ,17/10/23,UK National rail travel,PF Senior Staffing,Clarity Travel Management,CPSHQ081023,254.10,
Crown Prosecution Service ,17/10/23,UK National rail travel,Operational Performance,Clarity Travel Management,CPSHQ081023,936.10,
Crown Prosecution Service ,17/10/23,UK National rail travel,CFO Estates,Clarity Travel Management,CPSHQ081023,77.40,
Crown Prosecution Service ,17/10/23,UK National rail travel,Director of Legal Services,Clarity Travel Management,CPSHQ081023,994.80,
Crown Prosecution Service ,17/10/23,UK National rail travel,Victim Transformation Prog,Clarity Travel Management,CPSHQ081023,36.40,
Crown Prosecution Service ,17/10/23,UK National rail travel,PF Resourcing,Clarity Travel Management,CPSHQ081023,181.60,
Crown Prosecution Service ,17/10/23,UK National rail travel,PF Learning and Development General,Clarity Travel Management,CPSHQ081023,455.10,
Crown Prosecution Service ,17/10/23,UK National rail travel,Permanent Transfer Costs,Clarity Travel Management,CPSHQ081023,77.30,
Crown Prosecution Service ,17/10/23,UK National rail travel,PF People and Business Change,Clarity Travel Management,CPSHQ081023,581.00,
Crown Prosecution Service ,17/10/23,UK National rail travel,PF Inclusion,Clarity Travel Management,CPSHQ081023,22.00,
Crown Prosecution Service ,17/10/23,UK National rail travel,PF HR Business Management,Clarity Travel Management,CPSHQ081023,461.60,
Crown Prosecution Service ,17/10/23,UK National rail travel,Operational Business Support,Clarity Travel Management,CPSHQ081023,247.40,
Crown Prosecution Service ,17/10/23,UK National rail travel,Central Legal Training Team,Clarity Travel Management,CPSHQ081023,"1,143.20",
Crown Prosecution Service ,17/10/23,UK National rail travel,DID DTS Technology,Clarity Travel Management,CPSHQ081023,784.00,
Crown Prosecution Service ,17/10/23,Individual Learning Accounts,PF People and Business Change,Clarity Travel Management,CPSHQ081023,22.00,
Crown Prosecution Service ,17/10/23,UK National rail travel,CFO Fin System Change and Costings,Clarity Travel Management,CPSHQ081023,288.40,
Crown Prosecution Service ,17/10/23,UK National rail travel,PF Legal Training,Clarity Travel Management,CPSHQ081023,324.10,
Crown Prosecution Service ,17/10/23,UK National rail travel,Operational Change,Clarity Travel Management,CPSHQ081023,476.50,
Crown Prosecution Service ,17/10/23,UK National rail travel,PF HR Operations,Clarity Travel Management,CPSHQ081023,664.20,
Crown Prosecution Service ,17/10/23,UK National rail travel,DID Central Leadership Team,Clarity Travel Management,CPSHQ081023,573.50,
Crown Prosecution Service ,17/10/23,UK National rail travel,DID Operational Process,Clarity Travel Management,CPSHQ081023,847.80,
Crown Prosecution Service ,17/10/23,UK National rail travel,DID DTS Change,Clarity Travel Management,CPSHQ081023,"1,499.60",
Crown Prosecution Service ,17/10/23,UK National rail travel,Court Business Unit,Clarity Travel Management,CPSHQ081023,305.70,
Crown Prosecution Service ,18/10/23,UK National rail travel,Operational Business Support,Clarity Travel Management,CPSHQ151023,662.10,
Crown Prosecution Service ,18/10/23,UK National rail travel,Chief Finance Officer,Clarity Travel Management,CPSHQ151023,876.90,
Crown Prosecution Service ,18/10/23,UK Hotels,Strategy and Policy,Clarity Travel Management,CPSHQ151023,656.51,Y
Crown Prosecution Service ,18/10/23,UK Hotels,CFO Commercial,Clarity Travel Management,CPSHQ151023,546.02,Y
Crown Prosecution Service ,18/10/23,UK Hotels,DID Security and Information,Clarity Travel Management,CPSHQ151023,58.00,Y
Crown Prosecution Service ,18/10/23,UK Hotels,PF People and Business Change,Clarity Travel Management,CPSHQ151023,744.00,Y
Crown Prosecution Service ,18/10/23,UK Hotels,Permanent Transfer Costs,Clarity Travel Management,CPSHQ151023,141.00,Y
Crown Prosecution Service ,18/10/23,UK Hotels,Chief Finance Officer,Clarity Travel Management,CPSHQ151023,447.00,Y
Crown Prosecution Service ,18/10/23,UK Hotels,CFO Estates,Clarity Travel Management,CPSHQ151023,175.00,Y
Crown Prosecution Service ,18/10/23,UK Hotels,DID DTS Change,Clarity Travel Management,CPSHQ151023,"1,672.95",Y
Crown Prosecution Service ,18/10/23,UK Hotels,CFO Finance Operations,Clarity Travel Management,CPSHQ151023,850.00,Y
Crown Prosecution Service ,18/10/23,UK Hotels,CFO Strategic Financial Planning,Clarity Travel Management,CPSHQ151023,338.60,Y
Crown Prosecution Service ,18/10/23,UK Hotels,DTUS,Clarity Travel Management,CPSHQ151023,281.01,Y
Crown Prosecution Service ,18/10/23,UK Hotels,PF Senior Staffing,Clarity Travel Management,CPSHQ151023,150.00,Y
Crown Prosecution Service ,18/10/23,UK Hotels,DID Operational Process,Clarity Travel Management,CPSHQ151023,508.30,Y
Crown Prosecution Service ,18/10/23,UK Hotels,PF HR Business Partnering,Clarity Travel Management,CPSHQ151023,488.09,Y
Crown Prosecution Service ,18/10/23,UK Hotels,Central Operational Training,Clarity Travel Management,CPSHQ151023,89.01,Y
Crown Prosecution Service ,18/10/23,UK Hotels,Private Office,Clarity Travel Management,CPSHQ151023,280.00,Y
Crown Prosecution Service ,18/10/23,UK Hotels,DID DTS Technology,Clarity Travel Management,CPSHQ151023,833.43,Y
Crown Prosecution Service ,18/10/23,UK Hotels,PF National Black Crown Prosecutors Association,Clarity Travel Management,CPSHQ151023,334.00,Y
Crown Prosecution Service ,18/10/23,UK Hotels,Corporate Communication,Clarity Travel Management,CPSHQ151023,223.79,Y
Crown Prosecution Service ,18/10/23,UK Hotels,CFO Financial Reporting,Clarity Travel Management,CPSHQ151023,175.00,Y
Crown Prosecution Service ,18/10/23,UK Hotels,Central Legal Training Team,Clarity Travel Management,CPSHQ151023,"2,395.40",Y
Crown Prosecution Service ,18/10/23,UK National rail travel,Central Operational Training,Clarity Travel Management,CPSHQ151023,538.50,
Crown Prosecution Service ,18/10/23,UK National rail travel,DID Operational Process,Clarity Travel Management,CPSHQ151023,948.10,
Crown Prosecution Service ,18/10/23,UK National rail travel,PF Learning and Development General,Clarity Travel Management,CPSHQ151023,440.20,
Crown Prosecution Service ,18/10/23,UK National rail travel,DID Security and Information,Clarity Travel Management,CPSHQ151023,"2,392.55",
Crown Prosecution Service ,18/10/23,UK National rail travel,Court Business Unit,Clarity Travel Management,CPSHQ151023,306.60,
Crown Prosecution Service ,18/10/23,UK National rail travel,Director of Legal Services,Clarity Travel Management,CPSHQ151023,234.40,
Crown Prosecution Service ,18/10/23,UK National rail travel,PF People and Business Change,Clarity Travel Management,CPSHQ151023,"2,382.00",
Crown Prosecution Service ,18/10/23,UK National rail travel,DTUS,Clarity Travel Management,CPSHQ151023,234.60,
Crown Prosecution Service ,18/10/23,UK National rail travel,Operational Change,Clarity Travel Management,CPSHQ151023,781.00,
Crown Prosecution Service ,18/10/23,UK National rail travel,PF Analytics and Workforce Plan,Clarity Travel Management,CPSHQ151023,"1,335.05",
Crown Prosecution Service ,18/10/23,UK National rail travel,DID DTS Change,Clarity Travel Management,CPSHQ151023,"4,508.25",
Crown Prosecution Service ,18/10/23,UK National rail travel,PF HR Business Management,Clarity Travel Management,CPSHQ151023,430.30,
Crown Prosecution Service ,18/10/23,UK National rail travel,DID Central Leadership Team,Clarity Travel Management,CPSHQ151023,387.00,
Crown Prosecution Service ,18/10/23,UK National rail travel,PF HR Operations,Clarity Travel Management,CPSHQ151023,"1,727.20",
Crown Prosecution Service ,18/10/23,UK National rail travel,PF HR Business Partnering,Clarity Travel Management,CPSHQ151023,681.80,
Crown Prosecution Service ,18/10/23,UK National rail travel,Central Legal Training Team,Clarity Travel Management,CPSHQ151023,727.90,
Crown Prosecution Service ,18/10/23,UK National rail travel,Private Office,Clarity Travel Management,CPSHQ151023,"1,226.50",
Crown Prosecution Service ,18/10/23,UK National rail travel,PF National Black Crown Prosecutors Association,Clarity Travel Management,CPSHQ151023,230.40,
Crown Prosecution Service ,18/10/23,UK National rail travel,DID DTS Technology,Clarity Travel Management,CPSHQ151023,626.70,
Crown Prosecution Service ,18/10/23,UK National rail travel,Press Office,Clarity Travel Management,CPSHQ151023,361.60,
Crown Prosecution Service ,18/10/23,UK National rail travel,PF HR Systems and Information,Clarity Travel Management,CPSHQ151023,196.50,
Crown Prosecution Service ,18/10/23,UK National rail travel,Strategy and Policy,Clarity Travel Management,CPSHQ151023,"2,547.60",
Crown Prosecution Service ,18/10/23,UK National rail travel,Permanent Transfer Costs,Clarity Travel Management,CPSHQ151023,372.80,
Crown Prosecution Service ,18/10/23,UK National rail travel,CFO Strategic Financial Planning,Clarity Travel Management,CPSHQ151023,464.75,
Crown Prosecution Service ,18/10/23,UK National rail travel,Compliance and Assurance,Clarity Travel Management,CPSHQ151023,471.00,
Crown Prosecution Service ,18/10/23,UK National rail travel,Victim Transformation Prog,Clarity Travel Management,CPSHQ151023,432.00,
Crown Prosecution Service ,18/10/23,UK National rail travel,CFO Finance Operations,Clarity Travel Management,CPSHQ151023,470.30,
Crown Prosecution Service ,18/10/23,UK National rail travel,CFO Estates,Clarity Travel Management,CPSHQ151023,406.60,
Crown Prosecution Service ,18/10/23,UK National rail travel,Corporate Communication,Clarity Travel Management,CPSHQ151023,"1,062.80",
Crown Prosecution Service ,18/10/23,UK National rail travel,CFO Commercial,Clarity Travel Management,CPSHQ151023,"1,315.20",
Crown Prosecution Service ,18/10/23,UK National rail travel,Operational Performance,Clarity Travel Management,CPSHQ151023,154.70,
Crown Prosecution Service ,18/10/23,UK National rail travel,PF Legal Training,Clarity Travel Management,CPSHQ151023,75.00,
Crown Prosecution Service ,18/10/23,UK National rail travel,CFO Fin System Change and Costings,Clarity Travel Management,CPSHQ151023,273.90,
Crown Prosecution Service ,26/10/23,UK Hotels,Central Operational Training,Clarity Travel Management,CPSHQ221023,133.59,Y
Crown Prosecution Service ,26/10/23,UK National rail travel,PF HR Business Partnering,Clarity Travel Management,CPSHQ221023,549.00,
Crown Prosecution Service ,26/10/23,UK Hotels,PF HR Business Management,Clarity Travel Management,CPSHQ221023,357.45,Y
Crown Prosecution Service ,26/10/23,UK Hotels,Compliance and Assurance,Clarity Travel Management,CPSHQ221023,67.00,Y
Crown Prosecution Service ,26/10/23,UK Hotels,Permanent Transfer Costs,Clarity Travel Management,CPSHQ221023,282.00,Y
Crown Prosecution Service ,26/10/23,UK Hotels,Chief Finance Officer,Clarity Travel Management,CPSHQ221023,156.00,Y
Crown Prosecution Service ,26/10/23,UK Hotels,DID DTS Technology,Clarity Travel Management,CPSHQ221023,97.99,Y
Crown Prosecution Service ,26/10/23,UK Hotels,PF Learning and Development General,Clarity Travel Management,CPSHQ221023,130.25,Y
Crown Prosecution Service ,26/10/23,UK Hotels,PF People and Business Change,Clarity Travel Management,CPSHQ221023,121.02,Y
Crown Prosecution Service ,26/10/23,UK Hotels,DID DTS Change,Clarity Travel Management,CPSHQ221023,"1,240.15",Y
Crown Prosecution Service ,26/10/23,UK National rail travel,Operational Business Support,Clarity Travel Management,CPSHQ221023,"3,007.10",
Crown Prosecution Service ,26/10/23,UK National rail travel,PF Legal Training,Clarity Travel Management,CPSHQ221023,150.60,
Crown Prosecution Service ,26/10/23,UK National rail travel,Operational Change,Clarity Travel Management,CPSHQ221023,247.80,
Crown Prosecution Service ,26/10/23,UK National rail travel,Operational Performance,Clarity Travel Management,CPSHQ221023,414.60,
Crown Prosecution Service ,26/10/23,UK National rail travel,DID Security and Information,Clarity Travel Management,CPSHQ221023,"2,430.35",
Crown Prosecution Service ,26/10/23,UK National rail travel,Permanent Transfer Costs,Clarity Travel Management,CPSHQ221023,141.90,
Crown Prosecution Service ,26/10/23,UK National rail travel,PF HR Operations,Clarity Travel Management,CPSHQ221023,493.40,
Crown Prosecution Service ,26/10/23,UK National rail travel,PF People and Business Change,Clarity Travel Management,CPSHQ221023,"2,115.10",
Crown Prosecution Service ,26/10/23,UK National rail travel,PF Resourcing,Clarity Travel Management,CPSHQ221023,724.50,
Crown Prosecution Service ,26/10/23,UK National rail travel,DID Central Leadership Team,Clarity Travel Management,CPSHQ221023,696.30,
Crown Prosecution Service ,26/10/23,UK National rail travel,DID DTS Change,Clarity Travel Management,CPSHQ221023,"3,110.80",
Crown Prosecution Service ,26/10/23,UK National rail travel,CFO Estates,Clarity Travel Management,CPSHQ221023,403.60,
Crown Prosecution Service ,26/10/23,UK National rail travel,DID DTS Technology,Clarity Travel Management,CPSHQ221023,"1,548.50",
Crown Prosecution Service ,26/10/23,UK National rail travel,Compliance and Assurance,Clarity Travel Management,CPSHQ221023,112.40,
Crown Prosecution Service ,26/10/23,UK National rail travel,Chief Finance Officer,Clarity Travel Management,CPSHQ221023,403.00,
Crown Prosecution Service ,26/10/23,UK National rail travel,Central Legal Training Team,Clarity Travel Management,CPSHQ221023,950.90,
Crown Prosecution Service ,26/10/23,UK National rail travel,PF HR Business Management,Clarity Travel Management,CPSHQ221023,217.00,
Crown Prosecution Service ,26/10/23,UK National rail travel,PF Learning and Development General,Clarity Travel Management,CPSHQ221023,"2,907.80",
Crown Prosecution Service ,26/10/23,UK National rail travel,DTUS,Clarity Travel Management,CPSHQ221023,174.00,
Crown Prosecution Service ,26/10/23,UK National rail travel,Strategy and Policy,Clarity Travel Management,CPSHQ221023,"2,073.20",
Crown Prosecution Service ,26/10/23,UK National rail travel,Corporate Communication,Clarity Travel Management,CPSHQ221023,212.70,
Crown Prosecution Service ,26/10/23,UK National rail travel,DID Operational Process,Clarity Travel Management,CPSHQ221023,746.90,
Crown Prosecution Service ,26/10/23,UK National rail travel,PF Analytics and Workforce Plan,Clarity Travel Management,CPSHQ221023,897.30,
Crown Prosecution Service ,26/10/23,UK National rail travel,Private Office,Clarity Travel Management,CPSHQ221023,169.60,
Crown Prosecution Service ,26/10/23,UK National rail travel,CFO Commercial,Clarity Travel Management,CPSHQ221023,"2,017.40",
Crown Prosecution Service ,26/10/23,UK National rail travel,Director of Legal Services,Clarity Travel Management,CPSHQ221023,"1,794.20",
Crown Prosecution Service ,26/10/23,UK National rail travel,PF National Black Crown Prosecutors Association,Clarity Travel Management,CPSHQ221023,429.60,
Crown Prosecution Service ,26/10/23,UK Hotels,Permanent Transfer Costs,Clarity Travel Management,CPSHQ221023,178.00,Y
Crown Prosecution Service ,03/10/23,UK Hotels,Director of Legal Services,Clarity Travel Management,CPSHQ240923,156.00,Y
Crown Prosecution Service ,03/10/23,UK Hotels,DID Central Leadership Team,Clarity Travel Management,CPSHQ240923,291.05,Y
Crown Prosecution Service ,03/10/23,UK Hotels,PF People and Business Change,Clarity Travel Management,CPSHQ240923,147.00,Y
Crown Prosecution Service ,03/10/23,UK Hotels,Private Office,Clarity Travel Management,CPSHQ240923,484.60,Y
Crown Prosecution Service ,03/10/23,UK Hotels,DID DTS Change,Clarity Travel Management,CPSHQ240923,"1,380.50",Y
Crown Prosecution Service ,03/10/23,UK Hotels,Central Legal Training Team,Clarity Travel Management,CPSHQ240923,380.68,Y
Crown Prosecution Service ,03/10/23,UK Hotels,DTUS,Clarity Travel Management,CPSHQ240923,230.20,Y
Crown Prosecution Service ,03/10/23,UK Hotels,Compliance and Assurance,Clarity Travel Management,CPSHQ240923,"1,130.00",Y
Crown Prosecution Service ,03/10/23,UK Hotels,Permanent Transfer Costs,Clarity Travel Management,CPSHQ240923,168.00,Y
Crown Prosecution Service ,03/10/23,UK Hotels,Strategy and Policy,Clarity Travel Management,CPSHQ240923,301.50,Y
Crown Prosecution Service ,03/10/23,UK Hotels,Central Operational Training,Clarity Travel Management,CPSHQ240923,656.92,Y
Crown Prosecution Service ,03/10/23,UK Hotels,Court Business Unit,Clarity Travel Management,CPSHQ240923,381.40,Y
Crown Prosecution Service ,03/10/23,UK Hotels,DID Operational Process,Clarity Travel Management,CPSHQ240923,372.49,Y
Crown Prosecution Service ,03/10/23,UK Hotels,PF HR Business Partnering,Clarity Travel Management,CPSHQ240923,91.00,Y
Crown Prosecution Service ,03/10/23,UK Hotels,CFO Estates,Clarity Travel Management,CPSHQ240923,86.00,Y
Crown Prosecution Service ,03/10/23,UK National rail travel,Operational Change,Clarity Travel Management,CPSHQ240923,"1,916.20",
Crown Prosecution Service ,03/10/23,UK National rail travel,Director of Legal Services,Clarity Travel Management,CPSHQ240923,751.00,
Crown Prosecution Service ,03/10/23,UK National rail travel,CFO Finance Operations,Clarity Travel Management,CPSHQ240923,309.60,
Crown Prosecution Service ,03/10/23,UK National rail travel,PF HR Business Partnering,Clarity Travel Management,CPSHQ240923,998.90,
Crown Prosecution Service ,03/10/23,UK National rail travel,Victim Transformation Prog,Clarity Travel Management,CPSHQ240923,239.10,
Crown Prosecution Service ,03/10/23,UK National rail travel,Strategy and Policy,Clarity Travel Management,CPSHQ240923,476.35,
Crown Prosecution Service ,03/10/23,UK National rail travel,DID Security and Information,Clarity Travel Management,CPSHQ240923,"2,768.10",
Crown Prosecution Service ,03/10/23,UK National rail travel,DTUS,Clarity Travel Management,CPSHQ240923,208.60,
Crown Prosecution Service ,03/10/23,UK National rail travel,DID DTS Change,Clarity Travel Management,CPSHQ240923,"5,226.85",
Crown Prosecution Service ,03/10/23,UK National rail travel,DID DTS Technology,Clarity Travel Management,CPSHQ240923,"2,970.40",
Crown Prosecution Service ,03/10/23,UK National rail travel,CFO Estates,Clarity Travel Management,CPSHQ240923,600.80,
Crown Prosecution Service ,03/10/23,UK National rail travel,PF HR Operations,Clarity Travel Management,CPSHQ240923,557.80,
Crown Prosecution Service ,03/10/23,UK National rail travel,Permanent Transfer Costs,Clarity Travel Management,CPSHQ240923,57.20,
Crown Prosecution Service ,03/10/23,UK National rail travel,Corporate Communication,Clarity Travel Management,CPSHQ240923,"1,050.10",
Crown Prosecution Service ,03/10/23,UK National rail travel,PF HR Business Management,Clarity Travel Management,CPSHQ240923,177.90,
Crown Prosecution Service ,03/10/23,UK National rail travel,PF Resourcing,Clarity Travel Management,CPSHQ240923,939.30,
Crown Prosecution Service ,03/10/23,UK National rail travel,Court Business Unit,Clarity Travel Management,CPSHQ240923,330.10,
Crown Prosecution Service ,03/10/23,Overseas Air travel,DID Central Leadership Team,Clarity Travel Management,CPSHQ240923,115.50,
Crown Prosecution Service ,03/10/23,UK National rail travel,Chief Finance Officer,Clarity Travel Management,CPSHQ240923,318.10,
Crown Prosecution Service ,03/10/23,UK National rail travel,CFO Commercial,Clarity Travel Management,CPSHQ240923,"1,584.95",
Crown Prosecution Service ,03/10/23,UK National rail travel,DID Central Leadership Team,Clarity Travel Management,CPSHQ240923,869.50,
Crown Prosecution Service ,03/10/23,UK National rail travel,PF Analytics and Workforce Plan,Clarity Travel Management,CPSHQ240923,278.30,
Crown Prosecution Service ,03/10/23,UK National rail travel,PF National Black Crown Prosecutors Association,Clarity Travel Management,CPSHQ240923,68.30,
Crown Prosecution Service ,03/10/23,UK National rail travel,PF People and Business Change,Clarity Travel Management,CPSHQ240923,137.70,
Crown Prosecution Service ,03/10/23,UK National rail travel,DID Operational Process,Clarity Travel Management,CPSHQ240923,878.10,
Crown Prosecution Service ,03/10/23,UK National rail travel,Compliance and Assurance,Clarity Travel Management,CPSHQ240923,337.80,
Crown Prosecution Service ,03/10/23,UK National rail travel,Central Legal Training Team,Clarity Travel Management,CPSHQ240923,701.75,
Crown Prosecution Service ,03/10/23,UK National rail travel,CFO Financial Reporting,Clarity Travel Management,CPSHQ240923,79.85,
Crown Prosecution Service ,03/10/23,UK National rail travel,Press Office,Clarity Travel Management,CPSHQ240923,405.60,
Crown Prosecution Service ,03/10/23,UK National rail travel,PF Learning and Development General,Clarity Travel Management,CPSHQ240923,"1,919.20",
Crown Prosecution Service ,03/10/23,UK Hotels,DID Security and Information,Clarity Travel Management,CPSHQ240923,135.80,Y
Crown Prosecution Service ,18/10/23,Recoverable VAT control,Balance Sheet,Konica Minolta Business Solutions Limited,Fleet202308,"16,507.74",Y
Crown Prosecution Service ,18/10/23,Variable lease payment expenses IT and Equipment,Print Contract,Konica Minolta Business Solutions Limited,Fleet202308,"82,538.70",
Crown Prosecution Service ,25/10/23,Variable lease payment expenses IT and Equipment,Print Contract,Konica Minolta Business Solutions Limited,Fleet202309,"98,133.58",
Crown Prosecution Service ,25/10/23,Recoverable VAT control,Balance Sheet,Konica Minolta Business Solutions Limited,Fleet202309,"19,626.72",Y
Crown Prosecution Service ,11/10/23,IT services,DTS Programme Project Cost,Gamma Network Solutions Limited London,GA1735999,"25,110.00",Y
Crown Prosecution Service ,11/10/23,Recoverable VAT control,Balance Sheet,CGI IT UK Ltd,GB014114082,"4,467.97",Y
Crown Prosecution Service ,11/10/23,IT services,Apps and Hosting Contract,CGI IT UK Ltd,GB014114082,"22,339.83",
Crown Prosecution Service ,11/10/23,Recoverable VAT control,Balance Sheet,CGI IT UK Ltd,GB014114083,"4,328.17",Y
Crown Prosecution Service ,11/10/23,IT services,Apps and Hosting Contract,CGI IT UK Ltd,GB014114083,"21,640.84",
Crown Prosecution Service ,11/10/23,Recoverable VAT control,Balance Sheet,CGI IT UK Ltd,GB014114084,"4,339.78",Y
Crown Prosecution Service ,11/10/23,IT services,Apps and Hosting Contract,CGI IT UK Ltd,GB014114084,"21,698.89",
Crown Prosecution Service ,16/10/23,Recoverable VAT control,Balance Sheet,CGI IT UK Ltd,GB014114871,"167,258.23",Y
Crown Prosecution Service ,16/10/23,Intangibles asset purchase clearing CMS,DTS ICT Capital Expenditure,CGI IT UK Ltd,GB014114871,"836,291.17",
Crown Prosecution Service ,23/10/23,Recoverable VAT control,Balance Sheet,CGI IT UK Ltd,GB014115399,"11,086.55",Y
Crown Prosecution Service ,23/10/23,Intangibles asset purchase clearing CMS,DTS ICT Capital Expenditure,CGI IT UK Ltd,GB014115399,"55,432.75",
Crown Prosecution Service ,23/10/23,Recoverable VAT control,Balance Sheet,CGI IT UK Ltd,GB014115584,"4,949.07",Y
Crown Prosecution Service ,23/10/23,IT services,Apps and Hosting Contract,CGI IT UK Ltd,GB014115584,"24,745.34",
Crown Prosecution Service ,30/10/23,Recoverable VAT control,Balance Sheet,CGI IT UK Ltd,GB014115851,"215,958.02",Y
Crown Prosecution Service ,30/10/23,IT services,Apps and Hosting Contract,CGI IT UK Ltd,GB014115851,"1,079,790.09",
Crown Prosecution Service ,24/10/23,Crown Court Graduated Fee Scheme,London North Crown Court Unit,Deka Chambers Ltd,GXM379539A,"128,421.00",Y
Crown Prosecution Service ,12/10/23,Recoverable VAT control,Balance Sheet,FlyForm LTD Cardiff,INV-11553,"4,879.21",Y
Crown Prosecution Service ,12/10/23,IT services,DTS Programme Project Cost,FlyForm LTD Cardiff,INV-11553,"24,395.99",
Crown Prosecution Service ,13/10/23,Professional subscriptions and memberships,East of England Area Business Centre,Solicitors Regulation Authority SQE,INV200840978,"35,706.00",
Crown Prosecution Service ,12/10/23,Professional subscriptions and memberships,CPS Direct Out of Hours Prosecutors,Solicitors Regulation Authority Birmingham,INV200842082,"49,734.00",
Crown Prosecution Service ,23/10/23,Professional subscriptions and memberships,North West Area Business Centre,Solicitors Regulation Authority Birmingham,INV200843886,"25,788.00",
Crown Prosecution Service ,23/10/23,Professional subscriptions and memberships,North West Area Business Centre,Solicitors Regulation Authority Birmingham,INV200844262,"37,761.00",
Crown Prosecution Service ,13/10/23,Professional subscriptions and memberships,West Midlands Area Business Centre,Solicitors Regulation Authority Birmingham,INV200845468,"25,174.00",
Crown Prosecution Service ,13/10/23,Professional subscriptions and memberships,West Midlands Area Business Centre,Solicitors Regulation Authority Birmingham,INV200845537,"33,770.00",
Crown Prosecution Service ,26/10/23,Professional subscriptions and memberships,Wessex Area Business Centre,Solicitors Regulation Authority Birmingham,INV200857623,"29,779.00",
Crown Prosecution Service ,24/10/23,Professional subscriptions and memberships,London North Management Team,Solicitors Regulation Authority Birmingham,INV200862429,"63,737.00",
Crown Prosecution Service ,24/10/23,Professional subscriptions and memberships,Yorkshire and Humberside Area Business Centre,Solicitors Regulation Authority Birmingham,INV200862548,"44,562.00",
Crown Prosecution Service ,24/10/23,Professional subscriptions and memberships,London South Management Team,Solicitors Regulation Authority Birmingham,INV200863256,"52,721.00",
Crown Prosecution Service ,24/10/23,Professional subscriptions and memberships,North East RASSO Unit,Solicitors Regulation Authority Birmingham,INV200864986,"6,624.00",
Crown Prosecution Service ,24/10/23,Professional subscriptions and memberships,North East Area Business Centre,Solicitors Regulation Authority Birmingham,INV200864986,"27,193.00",
Crown Prosecution Service ,25/10/23,Professional subscriptions and memberships,Cymru Wales West Magistrates Court,Solicitors Regulation Authority Birmingham,INV200865545,"4,912.00",
Crown Prosecution Service ,25/10/23,Professional subscriptions and memberships,Cymru Wales RASSO unit,Solicitors Regulation Authority Birmingham,INV200865545,"7,368.00",
Crown Prosecution Service ,25/10/23,Professional subscriptions and memberships,Cymru Wales Fraud Unit,Solicitors Regulation Authority Birmingham,INV200865545,"1,535.00",
Crown Prosecution Service ,25/10/23,Professional subscriptions and memberships,Cymru Wales North Crown Court,Solicitors Regulation Authority Birmingham,INV200865545,"2,149.00",
Crown Prosecution Service ,25/10/23,Professional subscriptions and memberships,Cymru Wales West Crown Court,Solicitors Regulation Authority Birmingham,INV200865545,"2,456.00",
Crown Prosecution Service ,25/10/23,Professional subscriptions and memberships,Cymru Wales Management Team,Solicitors Regulation Authority Birmingham,INV200865545,"1,842.00",
Crown Prosecution Service ,25/10/23,Professional subscriptions and memberships,Cymru Wales South East Crown Court,Solicitors Regulation Authority Birmingham,INV200865545,"5,833.00",
Crown Prosecution Service ,25/10/23,Professional subscriptions and memberships,Cymru Wales Complex Casework Unit,Solicitors Regulation Authority Birmingham,INV200865545,"2,149.00",
Crown Prosecution Service ,25/10/23,Professional subscriptions and memberships,Cymru Wales South East Magistrates Court,Solicitors Regulation Authority Birmingham,INV200865545,"7,982.00",
Crown Prosecution Service ,25/10/23,Professional subscriptions and memberships,Cymru Wales North Magistrates Court,Solicitors Regulation Authority Birmingham,INV200865545,"6,754.00",
Crown Prosecution Service ,26/10/23,Professional subscriptions and memberships,Mersey Cheshire Area Business Centre,Solicitors Regulation Authority Birmingham,INV200867570,"36,627.00",
Crown Prosecution Service ,27/10/23,Professional subscriptions and memberships,East Midlands Management Team,Solicitors Regulation Authority Birmingham,INV200872799,614.00,
Crown Prosecution Service ,27/10/23,Professional subscriptions and memberships,East Midlands RASSO Unit,Solicitors Regulation Authority Birmingham,INV200872799,"3,991.00",
Crown Prosecution Service ,27/10/23,Professional subscriptions and memberships,East Midlands Complex Casework Unit,Solicitors Regulation Authority Birmingham,INV200872799,"1,228.00",
Crown Prosecution Service ,27/10/23,Professional subscriptions and memberships,East Midlands Magistrates Court Section,Solicitors Regulation Authority Birmingham,INV200872799,"11,843.00",
Crown Prosecution Service ,27/10/23,Professional subscriptions and memberships,East Midlands Crown Court Section,Solicitors Regulation Authority Birmingham,INV200872799,"7,675.00",
Crown Prosecution Service ,27/10/23,Professional subscriptions and memberships,East Midlands Management Team,Solicitors Regulation Authority Birmingham,INV200872854,614.00,
Crown Prosecution Service ,27/10/23,Professional subscriptions and memberships,East Midlands Magistrates Court Section,Solicitors Regulation Authority Birmingham,INV200872854,"11,843.00",
Crown Prosecution Service ,27/10/23,Professional subscriptions and memberships,East Midlands Complex Casework Unit,Solicitors Regulation Authority Birmingham,INV200872854,"1,228.00",
Crown Prosecution Service ,27/10/23,Professional subscriptions and memberships,East Midlands Crown Court Section,Solicitors Regulation Authority Birmingham,INV200872854,"7,675.00",
Crown Prosecution Service ,27/10/23,Professional subscriptions and memberships,East Midlands RASSO Unit,Solicitors Regulation Authority Birmingham,INV200872854,"3,991.00",
Crown Prosecution Service ,03/10/23,IT non capital software licences,Legal Reference and ICT Licenses,Eficode UK Ltd,INVUK1001381,"73,742.42",Y
Crown Prosecution Service ,24/10/23,IT non capital software licences,Legal Reference and ICT Licenses,Softcat Plc Marlow,INVUK1048165,"32,838.95",Y
Crown Prosecution Service ,25/10/23,Crown Court Graduated Fee Scheme,West Midlands Complex Casework Unit,Citadel Chambers,JXA/683851/,"33,903.84",Y
Crown Prosecution Service ,23/10/23,Crown Court Graduated Fee Scheme,RWD North Unit,2 Harcourt Buildings,MG-116398,"37,134.96",Y
Crown Prosecution Service ,12/10/23,Crown Court Graduated Fee Scheme,East Midlands Complex Casework Unit,Seven Bedford Row,2,"25,780.80",Y
Crown Prosecution Service ,12/10/23,Crown Court Graduated Fee Scheme,East Midlands Complex Casework Unit,Seven Bedford Row,2 lsb,"26,412.60",Y
Crown Prosecution Service ,12/10/23,Crown Court Graduated Fee Scheme,East Midlands Complex Casework Unit,Seven Bedford Row,lsb,"37,909.80",Y
Crown Prosecution Service ,03/10/23,General Professional Services,Strategy and Policy,Reed Talent Solutions London,R41086082M,"95,301.58",Y
Crown Prosecution Service ,03/10/23,Crown Court Graduated Fee Scheme,West Midlands Complex Casework Unit,St Philips Chambers,RPAKC 686468,"36,221.88",Y
Crown Prosecution Service ,26/10/23,Recoverable VAT control,Balance Sheet,AVR Transcription Ltd Bolton,SEPT23-CPS,"16,475.01",Y
Crown Prosecution Service ,26/10/23,Transcriptions and Translation,Other Corporate Programme Payments,AVR Transcription Ltd Bolton,SEPT23-CPS,"82,375.03",
Crown Prosecution Service ,27/10/23,Recoverable VAT control,Balance Sheet,Bray Leino Ltd Devon,SI0039904BLE,"11,427.65",Y
Crown Prosecution Service ,27/10/23,General Professional Services,IAP Conference,Bray Leino Ltd Devon,SI0039904BLE,"57,138.23",
Crown Prosecution Service ,16/10/23,General Professional Services,DTS Programme Project Cost,Bloom Procurement Services Ltd Gateshead,SIN046208,"54,366.31",Y
Crown Prosecution Service ,16/10/23,General Professional Services,DTS Programme Project Cost,Bloom Procurement Services Ltd Gateshead,SIN046408,"54,366.31",Y
Crown Prosecution Service ,30/10/23,General Professional Services,DTS Programme Project Cost,Bloom Procurement Services Ltd Gateshead,SIN046726,"44,679.60",Y
Crown Prosecution Service ,03/10/23,Crown Court Graduated Fee Scheme,London North Crown Court Unit,2 Harcourt Buildings,TN/118609,"29,620.92",Y
Crown Prosecution Service ,31/10/23,Crown Court Graduated Fee Scheme,London North Complex Casework Unit,3 Raymond Buildings,WEJ/251642/2,"35,034.00",Y
